[Event "GrandPrix_30.05"]
[Site "Chess.com"]
[Date "2020.05.30"]
[Round "3"]
[White "mishikomchedlishvili"]
[Black "Vnebo"]
[Result "1-0"]
[WhiteElo "2468"]
[BlackElo "2144"]
[TimeControl "600+2"]
[EndTime "9:22:59 PDT"]
[Termination "mishikomchedlishvili won by resignation"]

1. d4 {[%clk 0:10:01.9]} 1... d5 {[%clk 0:10:00.6]} 2. Nf3 {[%clk 0:10:01.9]}
2... Nf6 {[%clk 0:09:44.6]} 3. g3 {[%clk 0:10:00.8]} 3... e6 {[%clk 0:09:45]} 4.
Bg2 {[%clk 0:10:00]} 4... Be7 {[%clk 0:09:45]} 5. O-O {[%clk 0:09:58.8]} 5...
O-O {[%clk 0:09:45.9]} 6. c4 {[%clk 0:09:58.7]} 6... c6 {[%clk 0:09:46.3]} 7.
Qc2 {[%clk 0:09:57.9]} 7... Nbd7 {[%clk 0:09:46.1]} 8. Nbd2 {[%clk 0:09:57.9]}
8... b6 {[%clk 0:09:45.9]} 9. e4 {[%clk 0:09:51.5]} 9... dxc4 {[%clk 0:09:45.7]}
10. Nxc4 {[%clk 0:09:50.5]} 10... Bb7 {[%clk 0:09:46.9]} 11. e5 {[%clk
0:09:06.6]} 11... Nd5 {[%clk 0:09:44.8]} 12. h4 {[%clk 0:09:06.3]} 12... h6
{[%clk 0:09:36.8]} 13. Qe4 {[%clk 0:08:54.8]} 13... c5 {[%clk 0:09:18.3]} 14.
Qg4 {[%clk 0:08:55.5]} 14... Kh7 {[%clk 0:08:13.7]} 15. Qh5 {[%clk 0:08:32.4]}
15... cxd4 {[%clk 0:07:53.1]} 16. Nxd4 {[%clk 0:08:23.4]} 16... Nc5 {[%clk
0:07:45.2]} 17. Rd1 {[%clk 0:08:09.3]} 17... Rc8 {[%clk 0:07:16.7]} 18. Nb5
{[%clk 0:07:34.6]} 18... Qd7 {[%clk 0:04:23.6]} 19. Nbd6 {[%clk 0:07:30.6]}
19... Bxd6 {[%clk 0:03:40.9]} 20. Nxd6 {[%clk 0:07:30.5]} 20... Rcd8 {[%clk
0:03:31.8]} 21. Bg5 {[%clk 0:06:33.3]} 21... Rb8 {[%clk 0:03:27.1]} 22. Rd4
{[%clk 0:05:01.5]} 22... a5 {[%clk 0:02:34.8]} 23. Rad1 {[%clk 0:04:59.6]} 23...
Ba8 {[%clk 0:02:29.1]} 24. Ne4 {[%clk 0:03:45.5]} 24... Nxe4 {[%clk 0:02:07.8]}
25. Bxe4+ {[%clk 0:03:45.5]} 25... Kg8 {[%clk 0:02:09.4]} 26. Bxh6 {[%clk
0:01:42.3]} 26... gxh6 {[%clk 0:02:02.8]} 27. Qxh6 {[%clk 0:01:31.2]} 27... f5
{[%clk 0:01:59.2]} 28. exf6 {[%clk 0:01:30.9]} 28... Rxf6 {[%clk 0:01:25.3]} 29.
Qxf6 {[%clk 0:01:17.3]} 29... Nxf6 {[%clk 0:01:27.2]} 30. Rxd7 {[%clk
0:01:18.3]} 30... Bxe4 {[%clk 0:01:25.7]} 31. Rd8+ {[%clk 0:01:19.5]} 31... Rxd8
{[%clk 0:01:26.3]} 32. Rxd8+ {[%clk 0:01:21.1]} 32... Kf7 {[%clk 0:01:27.9]} 33.
Rd6 {[%clk 0:01:22.7]} 33... Nd5 {[%clk 0:01:13.7]} 34. a3 {[%clk 0:01:09.7]}
34... b5 {[%clk 0:01:05.2]} 35. g4 {[%clk 0:00:56.3]} 35... a4 {[%clk
0:00:49.4]} 36. Kh2 {[%clk 0:00:55.5]} 36... Nf4 {[%clk 0:00:21.3]} 37. Rd4
{[%clk 0:00:49.6]} 1-0

[Event "GrandPrix_30.05"]
[Site "Chess.com"]
[Date "2020.05.30"]
[Round "3"]
[White "tianachess"]
[Black "Salnaa"]
[Result "0-1"]
[WhiteElo "1993"]
[BlackElo "2168"]
[TimeControl "600+2"]
[EndTime "9:23:10 PDT"]
[Termination "Salnaa won by resignation"]

1. d4 {[%clk 0:09:52.7]} 1... d5 {[%clk 0:09:59.5]} 2. c4 {[%clk 0:09:50.9]}
2... c6 {[%clk 0:10:00.3]} 3. Nf3 {[%clk 0:09:50.6]} 3... Nf6 {[%clk 0:10:00.1]}
4. e3 {[%clk 0:09:49]} 4... a6 {[%clk 0:09:54.4]} 5. Qc2 {[%clk 0:09:13.3]} 5...
Bg4 {[%clk 0:09:40.5]} 6. Nbd2 {[%clk 0:08:59]} 6... e6 {[%clk 0:09:34.7]} 7.
Bd3 {[%clk 0:08:36.7]} 7... Be7 {[%clk 0:09:12.9]} 8. O-O {[%clk 0:08:25.8]}
8... O-O {[%clk 0:09:07.5]} 9. Ne5 {[%clk 0:08:13.6]} 9... Bh5 {[%clk
0:09:05.4]} 10. b3 {[%clk 0:08:05.7]} 10... Nbd7 {[%clk 0:08:51.4]} 11. Bb2
{[%clk 0:07:56.5]} 11... Rc8 {[%clk 0:08:32.5]} 12. f4 {[%clk 0:07:11.3]} 12...
Bg6 {[%clk 0:06:27.9]} 13. Nxg6 {[%clk 0:05:01.8]} 13... hxg6 {[%clk 0:06:29.8]}
14. Nf3 {[%clk 0:05:02.5]} 14... c5 {[%clk 0:06:16.3]} 15. Rac1 {[%clk
0:04:22.2]} 15... cxd4 {[%clk 0:05:40.3]} 16. exd4 {[%clk 0:04:20.5]} 16... dxc4
{[%clk 0:05:39.7]} 17. bxc4 {[%clk 0:04:20.9]} 17... b5 {[%clk 0:05:12.9]} 18.
c5 {[%clk 0:03:53.4]} 18... Nd5 {[%clk 0:04:57.1]} 19. Qd2 {[%clk 0:03:52.8]}
19... Nxc5 {[%clk 0:04:31]} 20. dxc5 {[%clk 0:03:40.8]} 20... Bxc5+ {[%clk
0:04:32.9]} 21. Rxc5 {[%clk 0:03:25.9]} 21... Rxc5 {[%clk 0:04:34.8]} 22. Rd1
{[%clk 0:01:06.9]} 22... Rc8 {[%clk 0:03:27.6]} 23. g3 {[%clk 0:00:56.6]} 23...
Qd6 {[%clk 0:03:14.6]} 24. Kg2 {[%clk 0:00:48.2]} 24... Rfd8 {[%clk 0:03:12.8]}
25. Be4 {[%clk 0:00:42.3]} 25... Qc5 {[%clk 0:02:44.5]} 26. Bd4 {[%clk
0:00:39.3]} 26... Qc4 {[%clk 0:02:44.8]} 27. Bd3 {[%clk 0:00:33.4]} 27... Qa4
{[%clk 0:02:41.9]} 28. Rb1 {[%clk 0:00:22.2]} 28... b4 {[%clk 0:02:26]} 29. Qb2
{[%clk 0:00:22]} 29... a5 {[%clk 0:01:05.6]} 30. Bxg7 {[%clk 0:00:20.5]} 30...
Nc3 {[%clk 0:01:07]} 31. Bxc3 {[%clk 0:00:16.3]} 31... Rxc3 {[%clk 0:00:48.6]}
32. Ne1 {[%clk 0:00:15]} 32... Rdxd3 {[%clk 0:00:47.6]} 33. Nxd3 {[%clk
0:00:15.4]} 33... Rc2+ {[%clk 0:00:47.1]} 34. Kh3 {[%clk 0:00:13.5]} 34... Rxb2
{[%clk 0:00:48.1]} 35. Rxb2 {[%clk 0:00:14.1]} 35... Qa3 {[%clk 0:00:49.6]} 36.
Rd2 {[%clk 0:00:12.7]} 36... Qc3 {[%clk 0:00:50.6]} 37. Rd1 {[%clk 0:00:12.6]}
37... Qc2 {[%clk 0:00:51.9]} 38. Rc1 {[%clk 0:00:09]} 38... Qxd3 {[%clk
0:00:52.8]} 39. Rc8+ {[%clk 0:00:09.6]} 39... Kg7 {[%clk 0:00:54.2]} 0-1

[Event "GrandPrix_30.05"]
[Site "Chess.com"]
[Date "2020.05.30"]
[Round "3"]
[White "Malysch"]
[Black "Frozygul"]
[Result "0-1"]
[WhiteElo "2296"]
[BlackElo "2174"]
[TimeControl "600+2"]
[EndTime "9:23:12 PDT"]
[Termination "Frozygul won on time"]

1. d4 {[%clk 0:10:01.9]} 1... d5 {[%clk 0:09:57.9]} 2. c4 {[%clk 0:10:02.3]}
2... dxc4 {[%clk 0:09:59.8]} 3. e4 {[%clk 0:10:02.5]} 3... b5 {[%clk 0:10:00.5]}
4. a4 {[%clk 0:10:01.8]} 4... c6 {[%clk 0:10:01.7]} 5. Nc3 {[%clk 0:09:56.8]}
5... a6 {[%clk 0:10:02.8]} 6. Nf3 {[%clk 0:09:38.8]} 6... Bb7 {[%clk 0:09:51.3]}
7. g3 {[%clk 0:08:44]} 7... e6 {[%clk 0:09:36.3]} 8. Bg2 {[%clk 0:08:43.4]} 8...
Ne7 {[%clk 0:09:27.6]} 9. O-O {[%clk 0:08:40.3]} 9... Nd7 {[%clk 0:09:21.9]} 10.
Qe2 {[%clk 0:08:34.1]} 10... Ng6 {[%clk 0:09:00.4]} 11. Rd1 {[%clk 0:08:19.4]}
11... Be7 {[%clk 0:09:00]} 12. h4 {[%clk 0:08:16]} 12... O-O {[%clk 0:08:56.7]}
13. h5 {[%clk 0:08:10.4]} 13... Nh8 {[%clk 0:08:57.6]} 14. d5 {[%clk 0:08:03.2]}
14... cxd5 {[%clk 0:08:27.9]} 15. exd5 {[%clk 0:08:05.1]} 15... exd5 {[%clk
0:08:27.6]} 16. Nxd5 {[%clk 0:07:59.2]} 16... Re8 {[%clk 0:08:20.5]} 17. h6
{[%clk 0:06:14.9]} 17... Ng6 {[%clk 0:06:49.7]} 18. hxg7 {[%clk 0:05:16.5]}
18... Bc5 {[%clk 0:06:20]} 19. Qc2 {[%clk 0:05:03.4]} 19... Nf6 {[%clk
0:04:38.8]} 20. Bg5 {[%clk 0:04:07.5]} 20... Bxd5 {[%clk 0:04:36.1]} 21. Bxf6
{[%clk 0:04:08.2]} 21... Qxf6 {[%clk 0:04:33.9]} 22. Rxd5 {[%clk 0:04:09.7]}
22... Ba7 {[%clk 0:04:04.3]} 23. Rad1 {[%clk 0:03:41.9]} 23... Rad8 {[%clk
0:03:57.4]} 24. axb5 {[%clk 0:03:24.5]} 24... axb5 {[%clk 0:03:55.8]} 25. Rxb5
{[%clk 0:03:09.9]} 25... Rxd1+ {[%clk 0:03:56.7]} 26. Qxd1 {[%clk 0:03:11.8]}
26... Ne5 {[%clk 0:03:58.3]} 27. Nxe5 {[%clk 0:00:52.1]} 27... Bxf2+ {[%clk
0:03:25.4]} 28. Kf1 {[%clk 0:00:39.1]} 28... Rxe5 {[%clk 0:03:24.8]} 29. Rxe5
{[%clk 0:00:23.5]} 29... Bxg3+ {[%clk 0:03:25.5]} 30. Qf3 {[%clk 0:00:22.2]}
30... Qxe5 {[%clk 0:02:47.5]} 31. Qc3 {[%clk 0:00:20.9]} 31... Qf4+ {[%clk
0:02:35.5]} 32. Bf3 {[%clk 0:00:21.7]} 32... h5 {[%clk 0:02:26.8]} 33. Ke2
{[%clk 0:00:19]} 33... h4 {[%clk 0:02:18.9]} 34. Qe3 {[%clk 0:00:19.7]} 34...
Qf6 {[%clk 0:01:36.3]} 35. Qc3 {[%clk 0:00:20.2]} 35... Qb6 {[%clk 0:01:06.5]}
36. Bd5 {[%clk 0:00:14.2]} 36... Qf2+ {[%clk 0:01:00.4]} 37. Kd1 {[%clk
0:00:15.1]} 37... Qf1+ {[%clk 0:00:56.1]} 38. Kc2 {[%clk 0:00:05.2]} 38... Qf5+
{[%clk 0:00:56.5]} 0-1

[Event "GrandPrix_30.05"]
[Site "Chess.com"]
[Date "2020.05.30"]
[Round "3"]
[White "Hakob-Hakobyan-Arm"]
[Black "moro182"]
[Result "0-1"]
[WhiteElo "2162"]
[BlackElo "2525"]
[TimeControl "600+2"]
[EndTime "9:23:17 PDT"]
[Termination "moro182 won by resignation"]

1. Nf3 {[%clk 0:10:01.9]} 1... d5 {[%clk 0:10:00.3]} 2. g3 {[%clk 0:10:02.6]}
2... Nf6 {[%clk 0:10:01.2]} 3. Bg2 {[%clk 0:10:04.2]} 3... c5 {[%clk 0:10:00.3]}
4. O-O {[%clk 0:10:04.7]} 4... Nc6 {[%clk 0:10:01.7]} 5. d4 {[%clk 0:10:05.9]}
5... e6 {[%clk 0:10:02.5]} 6. c4 {[%clk 0:10:06.7]} 6... dxc4 {[%clk 0:10:03.1]}
7. Ne5 {[%clk 0:10:07.7]} 7... Bd7 {[%clk 0:09:57]} 8. Na3 {[%clk 0:10:05.7]}
8... cxd4 {[%clk 0:09:48.1]} 9. Naxc4 {[%clk 0:10:05.1]} 9... Qc7 {[%clk
0:09:46.8]} 10. Bf4 {[%clk 0:08:38.5]} 10... Nh5 {[%clk 0:09:28.6]} 11. Nxd7
{[%clk 0:08:04.1]} 11... Nxf4 {[%clk 0:09:26.2]} 12. Nxf8 {[%clk 0:08:03.8]}
12... Nxg2 {[%clk 0:09:25.8]} 13. Nxe6 {[%clk 0:08:02.3]} 13... fxe6 {[%clk
0:09:22.6]} 14. Kxg2 {[%clk 0:08:03.8]} 14... O-O {[%clk 0:09:18.5]} 15. Rc1
{[%clk 0:07:53.1]} 15... Kh8 {[%clk 0:09:06.8]} 16. Qd3 {[%clk 0:07:26.4]} 16...
e5 {[%clk 0:08:02]} 17. Qe4 {[%clk 0:07:26.1]} 17... Rad8 {[%clk 0:07:53.2]} 18.
b4 {[%clk 0:06:55.1]} 18... Nxb4 {[%clk 0:06:56.3]} 19. Nxe5 {[%clk 0:06:54.1]}
19... Qd6 {[%clk 0:06:38.3]} 20. Nc4 {[%clk 0:05:33.7]} 20... Qf6 {[%clk
0:06:11.4]} 21. Qxb7 {[%clk 0:04:55.4]} 21... Nxa2 {[%clk 0:06:06]} 22. Ra1
{[%clk 0:03:31.3]} 22... Nc3 {[%clk 0:04:38.6]} 23. Rxa7 {[%clk 0:03:32.1]}
23... Nxe2 {[%clk 0:04:35.9]} 24. f4 {[%clk 0:03:06.2]} 24... d3 {[%clk
0:03:39.1]} 25. Ne5 {[%clk 0:02:16.1]} 25... d2 {[%clk 0:03:13.9]} 26. Qb3
{[%clk 0:02:14.1]} 26... Qd6 {[%clk 0:01:28.4]} 27. Nf7+ {[%clk 0:01:39.5]}
27... Rxf7 {[%clk 0:01:27.6]} 28. Rxf7 {[%clk 0:01:41.4]} 28... h6 {[%clk
0:01:10.5]} 29. Rd1 {[%clk 0:01:41.7]} 29... Qc6+ {[%clk 0:01:05.7]} 30. Kh3
{[%clk 0:01:04]} 30... Nc3 {[%clk 0:01:04.8]} 31. Rxd2 {[%clk 0:00:46.9]} 31...
Qc8+ {[%clk 0:01:05.6]} 32. f5 {[%clk 0:00:23.4]} 32... Rxd2 {[%clk 0:01:06.4]}
33. Qb4 {[%clk 0:00:18.8]} 33... Rd8 {[%clk 0:01:04.2]} 34. Qe7 {[%clk
0:00:18.7]} 34... Re8 {[%clk 0:00:35.8]} 35. Qd6 {[%clk 0:00:12]} 35... Ne4
{[%clk 0:00:34.6]} 36. Qd4 {[%clk 0:00:13.4]} 36... Ng5+ {[%clk 0:00:35.6]} 0-1

[Event "GrandPrix_30.05"]
[Site "Chess.com"]
[Date "2020.05.30"]
[Round "3"]
[White "bernereremit"]
[Black "JonahWillow"]
[Result "0-1"]
[WhiteElo "2072"]
[BlackElo "2244"]
[TimeControl "600+2"]
[EndTime "9:23:17 PDT"]
[Termination "JonahWillow won on time"]

1. e4 {[%clk 0:09:52]} 1... c5 {[%clk 0:10:00.9]} 2. Nc3 {[%clk 0:09:51.2]} 2...
Nc6 {[%clk 0:09:59.4]} 3. Nf3 {[%clk 0:09:52.6]} 3... g6 {[%clk 0:10:00.3]} 4.
d4 {[%clk 0:09:54]} 4... cxd4 {[%clk 0:10:02.2]} 5. Nxd4 {[%clk 0:09:55.5]} 5...
Bg7 {[%clk 0:10:02.4]} 6. Be3 {[%clk 0:09:57.1]} 6... Nf6 {[%clk 0:10:02.1]} 7.
Bc4 {[%clk 0:09:58.7]} 7... O-O {[%clk 0:10:02.7]} 8. Bb3 {[%clk 0:10:00.1]}
8... d6 {[%clk 0:10:03.8]} 9. f3 {[%clk 0:10:01.6]} 9... Bd7 {[%clk 0:10:04.9]}
10. h4 {[%clk 0:10:02.3]} 10... Nxd4 {[%clk 0:09:47.8]} 11. Bxd4 {[%clk
0:09:59.9]} 11... b5 {[%clk 0:09:49.2]} 12. h5 {[%clk 0:09:54.8]} 12... a5
{[%clk 0:09:16.7]} 13. hxg6 {[%clk 0:09:46.6]} 13... hxg6 {[%clk 0:09:17.6]} 14.
Nd5 {[%clk 0:09:23.4]} 14... a4 {[%clk 0:08:56.1]} 15. Nxf6+ {[%clk 0:09:20]}
15... exf6 {[%clk 0:08:54.9]} 16. Bd5 {[%clk 0:09:18.6]} 16... Rc8 {[%clk
0:08:53]} 17. Qd2 {[%clk 0:09:03.1]} 17... Be6 {[%clk 0:08:46.9]} 18. O-O-O
{[%clk 0:07:54.8]} 18... Qc7 {[%clk 0:08:32.2]} 19. Kb1 {[%clk 0:07:35.1]} 19...
b4 {[%clk 0:08:10.7]} 20. g4 {[%clk 0:06:53.1]} 20... Bxd5 {[%clk 0:08:03.9]}
21. exd5 {[%clk 0:06:53.4]} 21... Qc4 {[%clk 0:08:04.7]} 22. g5 {[%clk
0:05:19.4]} 22... fxg5 {[%clk 0:08:01]} 23. Qh2 {[%clk 0:04:55.5]} 23... f6
{[%clk 0:06:43.7]} 24. Rd2 {[%clk 0:03:30]} 24... b3 {[%clk 0:06:29.2]} 25. cxb3
{[%clk 0:03:22.5]} 25... axb3 {[%clk 0:06:31.1]} 26. axb3 {[%clk 0:03:22.1]}
26... Qxd5 {[%clk 0:06:25.8]} 27. Bc3 {[%clk 0:02:58]} 27... Qf5+ {[%clk
0:06:09]} 28. Kc1 {[%clk 0:02:58.4]} 28... Qxf3 {[%clk 0:06:06.2]} 29. Rhd1
{[%clk 0:02:38.9]} 29... Ra8 {[%clk 0:05:29.7]} 30. Qxd6 {[%clk 0:02:22.3]}
30... Ra1+ {[%clk 0:04:26.5]} 31. Kc2 {[%clk 0:02:22.1]} 31... Qf5+ {[%clk
0:04:27.8]} 32. Qd3 {[%clk 0:02:13.3]} 32... Rxd1 {[%clk 0:04:17.3]} 33. Rxd1
{[%clk 0:02:10.8]} 33... Kf7 {[%clk 0:03:50.2]} 34. b4 {[%clk 0:02:03.3]} 34...
g4 {[%clk 0:03:46.7]} 35. b5 {[%clk 0:01:57.1]} 35... Rb8 {[%clk 0:03:46.4]} 36.
Qxf5 {[%clk 0:01:28.2]} 36... gxf5 {[%clk 0:03:48.3]} 37. Rd5 {[%clk 0:01:24.5]}
37... Ke6 {[%clk 0:03:42.6]} 38. Rc5 {[%clk 0:01:21.2]} 38... g3 {[%clk
0:03:39.3]} 39. Be1 {[%clk 0:01:13.6]} 39... f4 {[%clk 0:03:35.4]} 40. Kd3
{[%clk 0:01:11.6]} 40... Bf8 {[%clk 0:03:21.1]} 41. Rc6+ {[%clk 0:01:03.3]}
41... Kf5 {[%clk 0:03:21.4]} 42. b6 {[%clk 0:00:44.6]} 42... Be7 {[%clk
0:03:19.2]} 43. Ke2 {[%clk 0:00:41.7]} 43... Kg4 {[%clk 0:03:15.5]} 44. b4
{[%clk 0:00:30.2]} 44... f3+ {[%clk 0:03:09.8]} 45. Kf1 {[%clk 0:00:27.7]} 45...
g2+ {[%clk 0:02:06.6]} 46. Kf2 {[%clk 0:00:20.6]} 46... f5 {[%clk 0:01:35.9]}
47. Rg6+ {[%clk 0:00:16.5]} 47... Kh5 {[%clk 0:01:37.1]} 48. Rg7 {[%clk
0:00:03.4]} 48... Bf6 {[%clk 0:01:34.9]} 0-1

[Event "GrandPrix_30.05"]
[Site "Chess.com"]
[Date "2020.05.30"]
[Round "3"]
[White "EvgenyPigusov"]
[Black "Valeriy_Neverov"]
[Result "1-0"]
[WhiteElo "2263"]
[BlackElo "2070"]
[TimeControl "600+2"]
[EndTime "9:23:20 PDT"]
[Termination "EvgenyPigusov won on time"]

1. e4 {[%clk 0:10:01.9]} 1... c5 {[%clk 0:09:59.4]} 2. c3 {[%clk 0:10:02.6]}
2... e6 {[%clk 0:09:56.7]} 3. d4 {[%clk 0:10:01.3]} 3... d5 {[%clk 0:09:56.4]}
4. exd5 {[%clk 0:09:58.1]} 4... exd5 {[%clk 0:09:55.7]} 5. Nf3 {[%clk
0:09:56.7]} 5... Nf6 {[%clk 0:09:47.8]} 6. Bb5+ {[%clk 0:09:52.8]} 6... Bd7
{[%clk 0:09:46.2]} 7. Qe2+ {[%clk 0:09:46.1]} 7... Be7 {[%clk 0:09:21.5]} 8.
dxc5 {[%clk 0:09:43.2]} 8... O-O {[%clk 0:09:16.4]} 9. O-O {[%clk 0:09:20.9]}
9... Bxc5 {[%clk 0:09:07.8]} 10. Bg5 {[%clk 0:09:13.9]} 10... Re8 {[%clk
0:08:24.9]} 11. Qd3 {[%clk 0:09:13.5]} 11... Qb6 {[%clk 0:08:23.4]} 12. Bxd7
{[%clk 0:09:09.4]} 12... Nbxd7 {[%clk 0:08:19.6]} 13. b4 {[%clk 0:08:21]} 13...
Bf8 {[%clk 0:07:26.7]} 14. Nbd2 {[%clk 0:08:18.4]} 14... Rac8 {[%clk 0:07:11]}
15. Rac1 {[%clk 0:07:34.8]} 15... h6 {[%clk 0:06:05.7]} 16. Be3 {[%clk
0:07:32.5]} 16... Qc7 {[%clk 0:05:52.7]} 17. h3 {[%clk 0:07:32.7]} 17... a6
{[%clk 0:05:39.8]} 18. a3 {[%clk 0:06:38.9]} 18... Nb6 {[%clk 0:04:51.9]} 19.
Rfd1 {[%clk 0:05:40.9]} 19... Na4 {[%clk 0:04:14.7]} 20. Rc2 {[%clk 0:05:25.8]}
20... b5 {[%clk 0:04:03]} 21. Rdc1 {[%clk 0:05:11.8]} 21... Qb7 {[%clk
0:02:45.2]} 22. Nd4 {[%clk 0:05:00.5]} 22... Ne4 {[%clk 0:02:43.7]} 23. N4b3
{[%clk 0:04:20.6]} 23... Re6 {[%clk 0:02:17.8]} 24. Nxe4 {[%clk 0:04:14.6]}
24... dxe4 {[%clk 0:02:11.9]} 25. Qe2 {[%clk 0:04:15.6]} 25... Nb6 {[%clk
0:02:07.2]} 26. Na5 {[%clk 0:04:15.3]} 26... Qd7 {[%clk 0:02:02.8]} 27. Bxb6
{[%clk 0:03:54.8]} 27... Rxb6 {[%clk 0:02:03.3]} 28. Qxe4 {[%clk 0:03:51.6]}
28... Re6 {[%clk 0:02:03.7]} 29. Qb7 {[%clk 0:03:33.4]} 29... Rc7 {[%clk
0:01:56.4]} 30. Qa8 {[%clk 0:03:27.7]} 30... Rc8 {[%clk 0:01:56.1]} 31. Qb7
{[%clk 0:03:22.7]} 31... Rc7 {[%clk 0:01:57]} 32. Qf3 {[%clk 0:03:20.7]} 32...
Qe8 {[%clk 0:01:53.2]} 33. c4 {[%clk 0:03:09.6]} 33... Bd6 {[%clk 0:01:47.3]}
34. g3 {[%clk 0:03:03.1]} 34... Rce7 {[%clk 0:01:07.5]} 35. Nc6 {[%clk
0:02:31.6]} 35... Re1+ {[%clk 0:01:04.8]} 36. Kg2 {[%clk 0:02:31.3]} 36... R7e6
{[%clk 0:01:00.7]} 37. Nd4 {[%clk 0:02:25]} 37... Rf6 {[%clk 0:00:44.8]} 38.
Rxe1 {[%clk 0:01:49.4]} 38... Qxe1 {[%clk 0:00:43.1]} 39. Qe2 {[%clk 0:01:49.4]}
39... Qxe2 {[%clk 0:00:34.7]} 40. Nxe2 {[%clk 0:01:47.6]} 40... bxc4 {[%clk
0:00:32.6]} 41. Rxc4 {[%clk 0:01:46.9]} 41... Be5 {[%clk 0:00:30.3]} 42. Nc3
{[%clk 0:01:26.3]} 42... Rd6 {[%clk 0:00:19.9]} 43. Ne4 {[%clk 0:01:25.6]} 43...
Rd3 {[%clk 0:00:16.8]} 44. a4 {[%clk 0:01:26]} 44... Ra3 {[%clk 0:00:17]} 45. a5
{[%clk 0:01:24.5]} 45... Ra2 {[%clk 0:00:15.3]} 46. Nc5 {[%clk 0:01:23.8]} 1-0

[Event "GrandPrix_30.05"]
[Site "Chess.com"]
[Date "2020.05.30"]
[Round "3"]
[White "Olghita64"]
[Black "vagpat"]
[Result "1-0"]
[WhiteElo "2055"]
[BlackElo "2209"]
[TimeControl "600+2"]
[EndTime "9:23:22 PDT"]
[Termination "Olghita64 won by resignation"]

1. Nf3 {[%clk 0:09:56.4]} 1... Nf6 {[%clk 0:09:59]} 2. c4 {[%clk 0:09:55.9]}
2... g6 {[%clk 0:09:51.1]} 3. Nc3 {[%clk 0:09:55.6]} 3... Bg7 {[%clk 0:09:51.6]}
4. e4 {[%clk 0:09:55.6]} 4... d6 {[%clk 0:09:52.5]} 5. d4 {[%clk 0:09:55.9]}
5... O-O {[%clk 0:09:53.4]} 6. Be2 {[%clk 0:09:56.8]} 6... b6 {[%clk 0:09:33.1]}
7. O-O {[%clk 0:09:21.1]} 7... Bb7 {[%clk 0:09:32]} 8. d5 {[%clk 0:09:08]} 8...
e5 {[%clk 0:09:08.8]} 9. Ne1 {[%clk 0:08:52.3]} 9... Nbd7 {[%clk 0:08:53.4]} 10.
Nd3 {[%clk 0:08:45.8]} 10... a5 {[%clk 0:08:49.1]} 11. Bg5 {[%clk 0:08:12]}
11... h6 {[%clk 0:08:35.4]} 12. Be3 {[%clk 0:08:11.5]} 12... Nc5 {[%clk
0:08:19.5]} 13. f3 {[%clk 0:07:51.3]} 13... Nh5 {[%clk 0:08:03]} 14. a3 {[%clk
0:07:48.7]} 14... Nxd3 {[%clk 0:06:44.3]} 15. Qxd3 {[%clk 0:07:18.7]} 15... Nf4
{[%clk 0:06:41.2]} 16. Qd2 {[%clk 0:07:07.6]} 16... Nxe2+ {[%clk 0:06:14.2]} 17.
Nxe2 {[%clk 0:07:04.7]} 17... Kh7 {[%clk 0:06:09.6]} 18. b4 {[%clk 0:07:01.1]}
18... f5 {[%clk 0:06:01]} 19. exf5 {[%clk 0:06:45.6]} 19... gxf5 {[%clk
0:05:53.7]} 20. f4 {[%clk 0:06:43.8]} 20... axb4 {[%clk 0:04:51.1]} 21. axb4
{[%clk 0:06:43.3]} 21... Rxa1 {[%clk 0:04:53]} 22. Rxa1 {[%clk 0:06:42.7]} 22...
exf4 {[%clk 0:04:54.6]} 23. Bd4 {[%clk 0:06:40.3]} 23... f3 {[%clk 0:03:16.9]}
24. Bxg7 {[%clk 0:06:39.3]} 24... f2+ {[%clk 0:03:16.9]} 25. Kxf2 {[%clk
0:06:25.7]} 25... Kxg7 {[%clk 0:03:18.4]} 26. Nf4 {[%clk 0:05:51.9]} 26... Qh4+
{[%clk 0:03:16.6]} 27. Kg1 {[%clk 0:05:48.7]} 27... Rf7 {[%clk 0:03:00.1]} 28.
g3 {[%clk 0:05:19.6]} 28... Qg4 {[%clk 0:01:52.9]} 29. Ne6+ {[%clk 0:03:29.5]}
29... Kh7 {[%clk 0:01:46.4]} 30. Nd8 {[%clk 0:03:25.3]} 30... Re7 {[%clk
0:01:15]} 31. Nxb7 {[%clk 0:02:48.5]} 31... Re2 {[%clk 0:00:53.3]} 32. Qd3
{[%clk 0:02:48.3]} 32... Qh5 {[%clk 0:00:52.2]} 33. h3 {[%clk 0:02:33.5]} 33...
Rb2 {[%clk 0:00:36.6]} 34. Rf1 {[%clk 0:02:30.5]} 34... Qxh3 {[%clk 0:00:17.9]}
35. Qxf5+ {[%clk 0:02:30.3]} 35... Qxf5 {[%clk 0:00:18.5]} 36. Rxf5 {[%clk
0:02:31.3]} 36... Kg6 {[%clk 0:00:19.3]} 37. Rf4 {[%clk 0:02:28.6]} 37... Rxb4
{[%clk 0:00:19.5]} 38. Nd8 {[%clk 0:02:28.6]} 38... b5 {[%clk 0:00:16.3]} 39.
cxb5 {[%clk 0:02:21.4]} 39... Rxb5 {[%clk 0:00:18.2]} 40. Nc6 {[%clk 0:02:22.1]}
40... Kg5 {[%clk 0:00:16.4]} 41. Ne7 {[%clk 0:02:16.4]} 41... Rb3 {[%clk
0:00:13.9]} 42. Kg2 {[%clk 0:02:16.3]} 42... Rc3 {[%clk 0:00:14.4]} 43. Kh3
{[%clk 0:02:12]} 43... h5 {[%clk 0:00:15.4]} 44. Rf5+ {[%clk 0:02:11.4]} 44...
Kh6 {[%clk 0:00:16.4]} 45. Kh4 {[%clk 0:01:55.7]} 45... Rc4+ {[%clk 0:00:17.2]}
46. Rf4 {[%clk 0:01:56.9]} 46... Rc1 {[%clk 0:00:17.9]} 47. Rf6+ {[%clk
0:01:50.3]} 47... Kg7 {[%clk 0:00:18.7]} 48. Kg5 {[%clk 0:01:49.5]} 48... Re1
{[%clk 0:00:04.5]} 49. Nf5+ {[%clk 0:01:49.5]} 49... Kh7 {[%clk 0:00:04.2]} 50.
Rf7+ {[%clk 0:01:46.5]} 50... Kg8 {[%clk 0:00:05.3]} 51. Kg6 {[%clk 0:01:46.2]}
51... Re4 {[%clk 0:00:04.4]} 52. Nh6+ {[%clk 0:01:46.5]} 1-0